[Event "*** Titled Tuesday Blitz"]
[Site "Chess.com"]
[Date "2018.09.04"]
[Round "2"]
[White "tony15051987"]
[Black "MFguimaraes"]
[Result "1-0"]
[WhiteElo "2453"]
[BlackElo "2302"]
[TimeControl "180+2"]
[EndTime "13:57:02 PDT"]
[Termination "tony15051987 won by resignation"]

1. d4 {[%clk 0:03:01.9]} 1... d5 {[%clk 0:03:00.2]} 2. c4 {[%clk 0:03:02.3]}
2... c6 {[%clk 0:03:01.5]} 3. Nc3 {[%clk 0:03:02.7]} 3... dxc4 {[%clk
0:03:02.8]} 4. e4 {[%clk 0:02:54.7]} 4... b5 {[%clk 0:03:03.3]} 5. a4 {[%clk
0:02:55.6]} 5... b4 {[%clk 0:03:04.3]} 6. Nb1 {[%clk 0:02:56.5]} 6... e6 {[%clk
0:03:03.1]} 7. Bxc4 {[%clk 0:02:56.4]} 7... Nf6 {[%clk 0:03:04.5]} 8. e5 {[%clk
0:02:55.5]} 8... Nd5 {[%clk 0:03:05.2]} 9. Nf3 {[%clk 0:02:56.6]} 9... Be7
{[%clk 0:03:05.9]} 10. O-O {[%clk 0:02:58]} 10... O-O {[%clk 0:03:03.1]} 11.
Nbd2 {[%clk 0:02:59.3]} 11... c5 {[%clk 0:03:02.5]} 12. dxc5 {[%clk 0:02:57.7]}
12... Bxc5 {[%clk 0:02:59.3]} 13. Ne4 {[%clk 0:02:58.2]} 13... Be7 {[%clk
0:03:00]} 14. Bg5 {[%clk 0:02:44.4]} 14... Ba6 {[%clk 0:02:59.3]} 15. Bxa6
{[%clk 0:02:38]} 15... Nxa6 {[%clk 0:02:59.8]} 16. Bxe7 {[%clk 0:02:38.3]} 16...
Qxe7 {[%clk 0:02:55.3]} 17. Nd6 {[%clk 0:02:37.3]} 17... f6 {[%clk 0:02:38.5]}
18. Re1 {[%clk 0:02:04]} 18... fxe5 {[%clk 0:02:33.7]} 19. Nc4 {[%clk
0:02:04.1]} 19... Rf4 {[%clk 0:02:18.1]} 20. Ncxe5 {[%clk 0:02:03.9]} 20... Raf8
{[%clk 0:02:17.6]} 21. Rc1 {[%clk 0:01:56.8]} 21... Nc5 {[%clk 0:01:58.1]} 22.
Rxc5 {[%clk 0:01:50]} 22... Qxc5 {[%clk 0:01:57.1]} 23. Nd7 {[%clk 0:01:51]}
23... Qd6 {[%clk 0:01:34.6]} 24. Nxf8 {[%clk 0:01:49.7]} 24... Rxf8 {[%clk
0:01:27.8]} 25. g3 {[%clk 0:01:40.3]} 25... h6 {[%clk 0:01:22.4]} 26. Nd4 {[%clk
0:01:37.1]} 26... Rf6 {[%clk 0:01:14.6]} 27. Qg4 {[%clk 0:01:21.5]} 27... Nf4
{[%clk 0:01:06.6]} 28. Re4 {[%clk 0:00:45.9]} 28... h5 {[%clk 0:00:56.4]} 29.
Qh4 {[%clk 0:00:25.1]} 29... g5 {[%clk 0:00:35.1]} 30. Qxg5+ {[%clk 0:00:24.7]}
30... Rg6 {[%clk 0:00:29.8]} 31. Qxf4 {[%clk 0:00:22.9]} 31... Qxf4 {[%clk
0:00:27.2]} 32. Rxf4 {[%clk 0:00:23.2]} 32... e5 {[%clk 0:00:28.6]} 33. Re4
{[%clk 0:00:22.7]} 33... exd4 {[%clk 0:00:29.5]} 34. Rxd4 {[%clk 0:00:23.7]}
34... a5 {[%clk 0:00:29]} 35. Rd5 {[%clk 0:00:24.3]} 35... h4 {[%clk 0:00:28.6]}
36. Rxa5 {[%clk 0:00:25]} 36... Rc6 {[%clk 0:00:26.7]} 37. Kg2 {[%clk
0:00:20.3]} 37... hxg3 {[%clk 0:00:25.8]} 38. hxg3 {[%clk 0:00:20.6]} 38... Rc2
{[%clk 0:00:26.6]} 39. Rb5 {[%clk 0:00:21.9]} 39... Rxb2 {[%clk 0:00:27.6]} 40.
a5 {[%clk 0:00:23.6]} 40... Ra2 {[%clk 0:00:24.8]} 41. a6 {[%clk 0:00:25.1]}
41... Rxa6 {[%clk 0:00:25.5]} 42. Rxb4 {[%clk 0:00:26.2]} 42... Kg7 {[%clk
0:00:27.1]} 43. Rb5 {[%clk 0:00:27]} 43... Kg6 {[%clk 0:00:28.4]} 44. f4 {[%clk
0:00:28]} 44... Ra3 {[%clk 0:00:28.9]} 45. Kh3 {[%clk 0:00:28.8]} 45... Rc3
{[%clk 0:00:28.1]} 46. Kg4 {[%clk 0:00:29.5]} 46... Kh6 {[%clk 0:00:29.5]} 47.
Rb6+ {[%clk 0:00:30.1]} 47... Kg7 {[%clk 0:00:30.5]} 48. f5 {[%clk 0:00:31.2]}
48... Rd3 {[%clk 0:00:30.4]} 49. Kf4 {[%clk 0:00:31.9]} 49... Rd4+ {[%clk
0:00:30.7]} 50. Kg5 {[%clk 0:00:32.6]} 50... Rd3 {[%clk 0:00:32.3]} 51. g4
{[%clk 0:00:33.6]} 51... Kh8 {[%clk 0:00:33.8]} 52. Rb7 {[%clk 0:00:34.4]} 52...
Rd8 {[%clk 0:00:34.1]} 53. Kh6 {[%clk 0:00:33.4]} 53... Kg8 {[%clk 0:00:31]} 54.
g5 {[%clk 0:00:33.6]} 54... Kf8 {[%clk 0:00:31.9]} 55. f6 {[%clk 0:00:34.3]}
55... Kg8 {[%clk 0:00:27.3]} 56. g6 {[%clk 0:00:34.6]} 1-0

[Event "*** Titled Tuesday Blitz"]
[Site "Chess.com"]
[Date "2018.09.04"]
[Round "2"]
[White "arna"]
[Black "Karina_Oparina"]
[Result "1-0"]
[WhiteElo "2079"]
[BlackElo "2176"]
[TimeControl "180+2"]
[EndTime "13:57:02 PDT"]
[Termination "arna won by checkmate"]

1. e4 {[%clk 0:03:01.4]} 1... e5 {[%clk 0:02:58.8]} 2. Nf3 {[%clk 0:03:01.8]}
2... Nc6 {[%clk 0:02:58.1]} 3. Nc3 {[%clk 0:03:02]} 3... Nf6 {[%clk 0:02:56.3]}
4. Be2 {[%clk 0:02:58.5]} 4... Bc5 {[%clk 0:02:48.1]} 5. Nxe5 {[%clk 0:02:57]}
5... Nxe5 {[%clk 0:02:43.5]} 6. d4 {[%clk 0:02:57.4]} 6... Bb4 {[%clk
0:02:38.3]} 7. dxe5 {[%clk 0:02:54.2]} 7... Nxe4 {[%clk 0:02:38.2]} 8. Qd4
{[%clk 0:02:55.8]} 8... Nxc3 {[%clk 0:02:36.4]} 9. bxc3 {[%clk 0:02:26.2]} 9...
Be7 {[%clk 0:02:33]} 10. Bf4 {[%clk 0:01:43.2]} 10... O-O {[%clk 0:02:26.8]} 11.
Rd1 {[%clk 0:01:42.6]} 11... b6 {[%clk 0:02:22.5]} 12. O-O {[%clk 0:01:40.9]}
12... Bc5 {[%clk 0:02:19.4]} 13. Qe4 {[%clk 0:01:28.7]} 13... Rb8 {[%clk
0:02:18.4]} 14. Qd3 {[%clk 0:01:11.4]} 14... Qe7 {[%clk 0:02:08.3]} 15. Bf3
{[%clk 0:01:03.3]} 15... a5 {[%clk 0:01:58.5]} 16. Be4 {[%clk 0:01:00.1]} 16...
Qh4 {[%clk 0:01:48.4]} 17. Bg3 {[%clk 0:00:53.5]} 17... Qh5 {[%clk 0:01:45]} 18.
h3 {[%clk 0:00:49.7]} 18... h6 {[%clk 0:01:34.3]} 19. Kh2 {[%clk 0:00:48.7]}
19... a4 {[%clk 0:01:22.4]} 20. f4 {[%clk 0:00:40.9]} 20... d6 {[%clk
0:01:02.3]} 21. f5 {[%clk 0:00:21.1]} 21... dxe5 {[%clk 0:00:52]} 22. Bxe5
{[%clk 0:00:20.3]} 22... f6 {[%clk 0:00:50.2]} 23. Bxc7 {[%clk 0:00:19.4]} 23...
Rb7 {[%clk 0:00:46.1]} 24. Bxb7 {[%clk 0:00:14.7]} 24... Bxb7 {[%clk 0:00:45.2]}
25. Qg3 {[%clk 0:00:14.4]} 25... Qf7 {[%clk 0:00:40]} 26. Bd6 {[%clk 0:00:09.9]}
26... a3 {[%clk 0:00:28.8]} 27. Bxc5 {[%clk 0:00:09.7]} 27... bxc5 {[%clk
0:00:29]} 28. Rd6 {[%clk 0:00:09.7]} 28... Qxa2 {[%clk 0:00:26.3]} 29. Rd7
{[%clk 0:00:10.2]} 29... Rf7 {[%clk 0:00:24.8]} 30. Qc7 {[%clk 0:00:08.9]} 30...
Rxd7 {[%clk 0:00:20]} 31. Qxd7 {[%clk 0:00:10.3]} 31... Qf7 {[%clk 0:00:21.4]}
32. Qxf7+ {[%clk 0:00:07.6]} 32... Kxf7 {[%clk 0:00:21.8]} 33. Ra1 {[%clk
0:00:09.5]} 33... Be4 {[%clk 0:00:22.9]} 34. g4 {[%clk 0:00:09.3]} 34... Bxc2
{[%clk 0:00:21.1]} 35. Rxa3 {[%clk 0:00:10.8]} 35... c4 {[%clk 0:00:21.6]} 36.
Kg3 {[%clk 0:00:11.6]} 36... h5 {[%clk 0:00:21.7]} 37. Ra7+ {[%clk 0:00:12.1]}
37... Kg8 {[%clk 0:00:20.5]} 38. Rc7 {[%clk 0:00:12.7]} 38... Bd3 {[%clk
0:00:17.2]} 39. Kf4 {[%clk 0:00:11.9]} 39... hxg4 {[%clk 0:00:17.2]} 40. hxg4
{[%clk 0:00:12.7]} 40... Kh7 {[%clk 0:00:18.3]} 41. g5 {[%clk 0:00:12.3]} 41...
fxg5+ {[%clk 0:00:18]} 42. Kxg5 {[%clk 0:00:14.2]} 42... Kh8 {[%clk 0:00:09]}
43. Kg6 {[%clk 0:00:12.7]} 43... Be2 {[%clk 0:00:03.7]} 44. Rc8# {[%clk
0:00:12.4]} 1-0

[Event "*** Titled Tuesday Blitz"]
[Site "Chess.com"]
[Date "2018.09.04"]
[Round "2"]
[White "Divertissement"]
[Black "dretch"]
[Result "1/2-1/2"]
[WhiteElo "2541"]
[BlackElo "2750"]
[TimeControl "180+2"]
[EndTime "13:57:13 PDT"]
[Termination "Game drawn by agreement"]

1. d4 {[%clk 0:02:58.8]} 1... d5 {[%clk 0:03:00.6]} 2. Nf3 {[%clk 0:02:59.2]}
2... Nf6 {[%clk 0:03:00.8]} 3. c4 {[%clk 0:02:59.3]} 3... c6 {[%clk 0:02:59.4]}
4. Nbd2 {[%clk 0:02:56]} 4... Bf5 {[%clk 0:02:54.6]} 5. Qb3 {[%clk 0:02:53.9]}
5... Qb6 {[%clk 0:02:54.7]} 6. Nh4 {[%clk 0:02:55]} 6... Be6 {[%clk 0:02:46.6]}
7. e3 {[%clk 0:02:50.7]} 7... g6 {[%clk 0:02:37.1]} 8. Be2 {[%clk 0:02:43.3]}
8... Bg7 {[%clk 0:02:36.8]} 9. Qa3 {[%clk 0:02:37.7]} 9... Qc7 {[%clk
0:01:51.3]} 10. O-O {[%clk 0:02:13.4]} 10... O-O {[%clk 0:01:51.6]} 11. Nhf3
{[%clk 0:02:15]} 11... Nbd7 {[%clk 0:01:49]} 12. Qxe7 {[%clk 0:01:48.4]} 12...
Rfd8 {[%clk 0:01:49.4]} 13. Qa3 {[%clk 0:01:47.2]} 13... c5 {[%clk 0:01:50]} 14.
b3 {[%clk 0:01:29.1]} 14... Ne4 {[%clk 0:01:44.8]} 15. cxd5 {[%clk 0:01:20.2]}
15... Bxd5 {[%clk 0:01:43.5]} 16. Nxe4 {[%clk 0:01:20.8]} 16... Bxe4 {[%clk
0:01:44.5]} 17. Bb2 {[%clk 0:01:11.7]} 17... Bf8 {[%clk 0:01:31.2]} 18. Rac1
{[%clk 0:01:08.2]} 18... Qb6 {[%clk 0:01:30.7]} 19. Qa4 {[%clk 0:01:02.7]} 19...
Qf6 {[%clk 0:01:18.7]} 20. Ba1 {[%clk 0:00:54]} 20... Qf5 {[%clk 0:01:09]} 21.
Rfd1 {[%clk 0:00:36]} 21... a6 {[%clk 0:00:51.5]} 22. Qa5 {[%clk 0:00:33.3]}
22... b5 {[%clk 0:00:34]} 23. dxc5 {[%clk 0:00:26.4]} 23... Bxc5 {[%clk
0:00:25.8]} 24. Qc3 {[%clk 0:00:21.5]} 24... f6 {[%clk 0:00:27.1]} 25. Nd4
{[%clk 0:00:18.7]} 25... Qg5 {[%clk 0:00:23.6]} 26. f3 {[%clk 0:00:16.7]} 26...
Bd5 {[%clk 0:00:24.5]} 27. e4 {[%clk 0:00:10.7]} 27... Bf7 {[%clk 0:00:23]} 28.
b4 {[%clk 0:00:11.6]} 28... Bb6 {[%clk 0:00:22.7]} 29. Kh1 {[%clk 0:00:10.9]}
29... Ne5 {[%clk 0:00:16.3]} 30. Nc6 {[%clk 0:00:09.3]} 30... Re8 {[%clk
0:00:15.5]} 31. Nxe5 {[%clk 0:00:09.5]} 31... fxe5 {[%clk 0:00:17.4]} 32. a3
{[%clk 0:00:10.4]} 32... Be3 {[%clk 0:00:16.1]} 33. Rb1 {[%clk 0:00:08]} 33...
Rac8 {[%clk 0:00:16.6]} 34. Qe1 {[%clk 0:00:08.4]} 34... Rc2 {[%clk 0:00:16.9]}
35. Rb2 {[%clk 0:00:08]} 35... Rec8 {[%clk 0:00:16.7]} 36. Rxc2 {[%clk
0:00:09.1]} 36... Rxc2 {[%clk 0:00:18.6]} 37. Bf1 {[%clk 0:00:08]} 37... Bc4
{[%clk 0:00:18.3]} 38. Qg3 {[%clk 0:00:08]} 38... Qxg3 {[%clk 0:00:18.5]} 39.
hxg3 {[%clk 0:00:09.8]} 39... Bxf1 {[%clk 0:00:19.4]} 40. Rxf1 {[%clk
0:00:11.4]} 40... Bd4 {[%clk 0:00:20.3]} 41. Bxd4 {[%clk 0:00:12.7]} 41... exd4
{[%clk 0:00:21.8]} 42. Rd1 {[%clk 0:00:14.3]} 42... Rc4 {[%clk 0:00:23.1]} 43.
Kg1 {[%clk 0:00:14.8]} 43... Kf7 {[%clk 0:00:24.2]} 44. Kf2 {[%clk 0:00:16.2]}
44... Ke6 {[%clk 0:00:25.3]} 45. f4 {[%clk 0:00:17.9]} 45... Kd6 {[%clk
0:00:20.5]} 46. Rd3 {[%clk 0:00:19.3]} 46... a5 {[%clk 0:00:20.7]} 47. bxa5
{[%clk 0:00:19.4]} 47... Ra4 {[%clk 0:00:20.2]} 48. Kf3 {[%clk 0:00:20.1]} 48...
Kc5 {[%clk 0:00:21.5]} 49. g4 {[%clk 0:00:19.9]} 49... Rxa5 {[%clk 0:00:21.8]}
50. e5 {[%clk 0:00:20.7]} 50... Kd5 {[%clk 0:00:22.1]} 51. e6 {[%clk 0:00:21.8]}
51... Kxe6 {[%clk 0:00:22.5]} 52. Ke4 {[%clk 0:00:23.3]} 52... Ra4 {[%clk
0:00:21.6]} 53. Rb3 {[%clk 0:00:23.8]} 53... h6 {[%clk 0:00:19.4]} 54. Rxb5
{[%clk 0:00:23.8]} 54... d3+ {[%clk 0:00:14.8]} 55. Kxd3 {[%clk 0:00:24]} 55...
Rxa3+ {[%clk 0:00:15.9]} 56. Ke4 {[%clk 0:00:24.7]} 56... Rg3 {[%clk 0:00:17]}
57. Rb6+ {[%clk 0:00:24.1]} 1/2-1/2

[Event "*** Titled Tuesday Blitz"]
[Site "Chess.com"]
[Date "2018.09.04"]
[Round "2"]
[White "LordIron"]
[Black "Po6Don"]
[Result "1-0"]
[WhiteElo "2247"]
[BlackElo "2095"]
[TimeControl "180+2"]
[EndTime "13:57:26 PDT"]
[Termination "LordIron won on time"]

1. d4 {[%clk 0:03:01.9]} 1... d5 {[%clk 0:03:00.1]} 2. Nf3 {[%clk 0:03:02.6]}
2... Nc6 {[%clk 0:02:56.2]} 3. c4 {[%clk 0:02:59.7]} 3... Bg4 {[%clk 0:02:56.3]}
4. cxd5 {[%clk 0:02:50.1]} 4... Bxf3 {[%clk 0:02:55.4]} 5. gxf3 {[%clk
0:02:51.5]} 5... Qxd5 {[%clk 0:02:55.4]} 6. e3 {[%clk 0:02:52.6]} 6... e5 {[%clk
0:02:56]} 7. Nc3 {[%clk 0:02:53.6]} 7... Bb4 {[%clk 0:02:55.1]} 8. Bd2 {[%clk
0:02:54.9]} 8... Bxc3 {[%clk 0:02:55.5]} 9. bxc3 {[%clk 0:02:56.8]} 9... Qd6
{[%clk 0:02:55.4]} 10. Rb1 {[%clk 0:02:55.5]} 10... O-O-O {[%clk 0:02:55.7]} 11.
Qa4 {[%clk 0:02:45.3]} 11... Nge7 {[%clk 0:02:38.7]} 12. Qb5 {[%clk 0:02:16.6]}
12... b6 {[%clk 0:02:35.2]} 13. a4 {[%clk 0:02:08.5]} 13... f5 {[%clk 0:02:16]}
14. Be2 {[%clk 0:01:38.7]} 14... f4 {[%clk 0:02:02.7]} 15. Bf1 {[%clk
0:01:18.4]} 15... exd4 {[%clk 0:01:15.6]} 16. exd4 {[%clk 0:00:48.9]} 16... Nxd4
{[%clk 0:01:13.1]} 17. cxd4 {[%clk 0:00:32.9]} 17... Qxd4 {[%clk 0:01:15]} 18.
Qb4 {[%clk 0:00:28]} 18... Rhe8 {[%clk 0:00:51.6]} 19. Qxd4 {[%clk 0:00:13.2]}
19... Rxd4 {[%clk 0:00:53.5]} 20. Bh3+ {[%clk 0:00:05.9]} 20... Kb8 {[%clk
0:00:53.8]} 21. Rb2 {[%clk 0:00:06.1]} 21... Ng6+ {[%clk 0:00:31.5]} 22. Kf1
{[%clk 0:00:07.1]} 22... Nh4 {[%clk 0:00:33.2]} 23. Rg1 {[%clk 0:00:06.5]} 23...
Nxf3 {[%clk 0:00:29.6]} 24. Rxg7 {[%clk 0:00:07.5]} 24... Nxd2+ {[%clk 0:00:28]}
25. Kg2 {[%clk 0:00:09]} 25... f3+ {[%clk 0:00:24.2]} 26. Kg3 {[%clk 0:00:08.8]}
26... Rf8 {[%clk 0:00:24.5]} 27. Bd7 {[%clk 0:00:07.4]} 27... Ne4+ {[%clk
0:00:24.1]} 28. Kh3 {[%clk 0:00:07.8]} 28... Rd2 {[%clk 0:00:21.9]} 29. Rxd2
{[%clk 0:00:07.9]} 29... Nxd2 {[%clk 0:00:23.2]} 30. Bc6 {[%clk 0:00:09.3]}
30... Nc4 {[%clk 0:00:17]} 31. Rxh7 {[%clk 0:00:09.7]} 31... Ne5 {[%clk
0:00:18.1]} 32. Bd5 {[%clk 0:00:09.6]} 32... c5 {[%clk 0:00:19]} 33. Be4 {[%clk
0:00:11.1]} 33... Rf7 {[%clk 0:00:17.8]} 34. Rh8+ {[%clk 0:00:11.4]} 34... Kc7
{[%clk 0:00:18.1]} 35. Kg3 {[%clk 0:00:13]} 35... Kd6 {[%clk 0:00:18.8]} 36. h4
{[%clk 0:00:13.5]} 36... c4 {[%clk 0:00:19.7]} 37. Rc8 {[%clk 0:00:12.6]} 37...
Rg7+ {[%clk 0:00:19.5]} 38. Kf4 {[%clk 0:00:13.2]} 38... Rf7+ {[%clk 0:00:19.9]}
39. Ke3 {[%clk 0:00:14]} 39... a6 {[%clk 0:00:17.7]} 40. Kd4 {[%clk 0:00:12.6]}
40... b5 {[%clk 0:00:16]} 41. axb5 {[%clk 0:00:14.5]} 41... axb5 {[%clk
0:00:17.1]} 42. h5 {[%clk 0:00:16.1]} 42... Rd7 {[%clk 0:00:15.9]} 43. Ra8
{[%clk 0:00:14.7]} 43... b4 {[%clk 0:00:15.2]} 44. Ra6+ {[%clk 0:00:14.1]} 44...
Ke7+ {[%clk 0:00:15.7]} 45. Kxe5 {[%clk 0:00:15.3]} 45... b3 {[%clk 0:00:16.5]}
46. h6 {[%clk 0:00:16.3]} 46... c3 {[%clk 0:00:17]} 47. h7 {[%clk 0:00:17.7]}
47... Rd8 {[%clk 0:00:15.8]} 48. Ra7+ {[%clk 0:00:18.4]} 48... Rd7 {[%clk
0:00:13.2]} 49. Rxd7+ {[%clk 0:00:19.6]} 49... Kxd7 {[%clk 0:00:13.8]} 50. h8=Q
{[%clk 0:00:21.5]} 50... Ke7 {[%clk 0:00:11.7]} 51. Qc8 {[%clk 0:00:21.8]} 1-0

[Event "*** Titled Tuesday Blitz"]
[Site "Chess.com"]
[Date "2018.09.04"]
[Round "2"]
[White "area_5"]
[Black "Msb2"]
[Result "0-1"]
[WhiteElo "2579"]
[BlackElo "2852"]
[TimeControl "180+2"]
[EndTime "13:57:27 PDT"]
[Termination "Msb2 won by resignation"]

1. e4 {[%clk 0:02:57.6]} 1... c6 {[%clk 0:03:00.7]} 2. d4 {[%clk 0:02:57.8]}
2... d5 {[%clk 0:03:02.4]} 3. Nc3 {[%clk 0:02:59.4]} 3... dxe4 {[%clk
0:03:03.5]} 4. Nxe4 {[%clk 0:03:01.3]} 4... Bf5 {[%clk 0:03:04.9]} 5. Ng3 {[%clk
0:03:03]} 5... Bg6 {[%clk 0:03:06.4]} 6. Nh3 {[%clk 0:03:04.6]} 6... Nf6 {[%clk
0:03:07.4]} 7. Nf4 {[%clk 0:03:04.8]} 7... Nbd7 {[%clk 0:03:09]} 8. h4 {[%clk
0:03:03.7]} 8... e5 {[%clk 0:03:10.2]} 9. dxe5 {[%clk 0:02:59.9]} 9... Qa5+
{[%clk 0:03:10.9]} 10. c3 {[%clk 0:02:45.2]} 10... Qxe5+ {[%clk 0:03:11.9]} 11.
Qe2 {[%clk 0:02:46.2]} 11... Bc5 {[%clk 0:03:12.7]} 12. h5 {[%clk 0:02:41.8]}
12... Bc2 {[%clk 0:03:07.5]} 13. h6 {[%clk 0:02:10.7]} 13... g6 {[%clk
0:03:04.3]} 14. b4 {[%clk 0:02:10.1]} 14... Bb6 {[%clk 0:02:50.6]} 15. Kd2
{[%clk 0:01:52.5]} 15... Be4 {[%clk 0:02:38.3]} 16. Nd3 {[%clk 0:01:53.5]} 16...
Bxd3 {[%clk 0:02:32.7]} 17. Kxd3 {[%clk 0:01:47.4]} 17... O-O-O {[%clk
0:02:23.5]} 18. Kc2 {[%clk 0:01:40.5]} 18... Qd6 {[%clk 0:01:55]} 19. Bg5 {[%clk
0:01:24.4]} 19... Rhe8 {[%clk 0:01:55]} 20. Qf3 {[%clk 0:01:24.8]} 20... Qe5
{[%clk 0:01:29.8]} 21. Bf4 {[%clk 0:01:10.8]} 21... Qd5 {[%clk 0:01:29.8]} 22.
a4 {[%clk 0:01:00.7]} 22... Qxf3 {[%clk 0:01:22.1]} 23. gxf3 {[%clk 0:01:01.6]}
23... Bxf2 {[%clk 0:01:23.7]} 24. Bc4 {[%clk 0:00:58.1]} 24... g5 {[%clk
0:01:14.6]} 25. Bd6 {[%clk 0:00:29.9]} 25... Nb6 {[%clk 0:01:15.1]} 26. Bxf7
{[%clk 0:00:29.6]} 26... Rxd6 {[%clk 0:01:16.4]} 27. Bxe8 {[%clk 0:00:28.7]}
27... Bxg3 {[%clk 0:01:17.8]} 28. Bf7 {[%clk 0:00:27.3]} 28... Nbd5 {[%clk
0:01:16.6]} 29. Kb3 {[%clk 0:00:26.8]} 29... Kc7 {[%clk 0:01:06.5]} 30. Rad1
{[%clk 0:00:26.4]} 30... Ne3 {[%clk 0:00:59.8]} 31. Rxd6 {[%clk 0:00:26.1]}
31... Kxd6 {[%clk 0:01:01.7]} 32. Rg1 {[%clk 0:00:27]} 32... Bf4 {[%clk
0:01:02.4]} 33. Bc4 {[%clk 0:00:26.2]} 33... Nxc4 {[%clk 0:00:53.9]} 34. Kxc4
{[%clk 0:00:27.2]} 34... Nd5 {[%clk 0:00:55.5]} 35. Kd3 {[%clk 0:00:28.3]} 35...
Ne7 {[%clk 0:00:41.2]} 36. c4 {[%clk 0:00:26.4]} 36... Nf5 {[%clk 0:00:42.1]}
37. Re1 {[%clk 0:00:21.1]} 37... Nxh6 {[%clk 0:00:42.9]} 38. Rh1 {[%clk
0:00:22.1]} 38... g4 {[%clk 0:00:39.3]} 39. fxg4 {[%clk 0:00:22.9]} 39... Ke5
{[%clk 0:00:37.2]} 40. Rh5+ {[%clk 0:00:22.7]} 40... Kf6 {[%clk 0:00:38.6]} 41.
Ke4 {[%clk 0:00:23.6]} 41... Bg5 {[%clk 0:00:40]} 42. Kf3 {[%clk 0:00:24]} 42...
Kg6 {[%clk 0:00:40.8]} 43. Rh1 {[%clk 0:00:23.4]} 43... Nf7 {[%clk 0:00:41.8]}
44. Ke4 {[%clk 0:00:24.7]} 44... Nd6+ {[%clk 0:00:43.1]} 45. Kd3 {[%clk
0:00:26]} 45... Bf6 {[%clk 0:00:42.4]} 46. c5 {[%clk 0:00:27]} 46... Nf7 {[%clk
0:00:40]} 47. Ke4 {[%clk 0:00:27.7]} 47... Ng5+ {[%clk 0:00:41.5]} 48. Kf4
{[%clk 0:00:27.2]} 48... Bc3 {[%clk 0:00:38.2]} 49. Rb1 {[%clk 0:00:27.5]} 49...
Ne6+ {[%clk 0:00:36.2]} 50. Ke4 {[%clk 0:00:28.2]} 50... Kg5 {[%clk 0:00:37.8]}
51. Kd3 {[%clk 0:00:27.4]} 51... Bf6 {[%clk 0:00:35.5]} 52. Kc4 {[%clk
0:00:28.3]} 52... Kxg4 {[%clk 0:00:30.5]} 53. b5 {[%clk 0:00:29.3]} 53... h5
{[%clk 0:00:30.9]} 54. bxc6 {[%clk 0:00:29.7]} 54... bxc6 {[%clk 0:00:32.8]} 55.
Rb7 {[%clk 0:00:27.4]} 55... h4 {[%clk 0:00:33.9]} 56. Rxa7 {[%clk 0:00:28.5]}
56... h3 {[%clk 0:00:35.4]} 57. Rh7 {[%clk 0:00:29.1]} 57... Bh4 {[%clk
0:00:36.5]} 58. Rf7 {[%clk 0:00:30.1]} 58... h2 {[%clk 0:00:28.6]} 59. Rf1
{[%clk 0:00:30.5]} 59... Bf2 {[%clk 0:00:29.6]} 60. Rh1 {[%clk 0:00:28.7]} 60...
Kg3 {[%clk 0:00:30.4]} 61. a5 {[%clk 0:00:28.8]} 61... Bxc5 {[%clk 0:00:31.5]}
62. a6 {[%clk 0:00:29.9]} 62... Kg2 {[%clk 0:00:32.2]} 63. Re1 {[%clk
0:00:30.4]} 63... h1=Q {[%clk 0:00:33.3]} 64. Rxh1 {[%clk 0:00:31.5]} 64... Kxh1
{[%clk 0:00:34.9]} 65. Kd3 {[%clk 0:00:33.2]} 65... Ba7 {[%clk 0:00:35.4]} 66.
Ke4 {[%clk 0:00:34.4]} 66... Nc7 {[%clk 0:00:37]} 67. Ke5 {[%clk 0:00:35.4]}
67... Nxa6 {[%clk 0:00:38.5]} 68. Kd6 {[%clk 0:00:36.7]} 68... c5 {[%clk
0:00:40]} 69. Kc6 {[%clk 0:00:38.1]} 69... c4 {[%clk 0:00:41]} 0-1